fUST/lending_fUST_20240126
["ID","MTS","AMOUNT","RATE_DAILY","PERIOD"]
[312792135,1706235039493,-153.0,0.00030137,2]
[312792136,1706235039502,-153.0,0.00030137,2]
[312792137,1706235039511,-153.6759854,0.00030137,2]
[312792138,1706235039519,-153.0,0.00030137,2]
[312792139,1706235039528,-153.0,0.00030137,2]
[312792140,1706235039537,-153.0,0.00030137,2]
[312792141,1706235039546,-153.0,0.00030137,2]
[312792142,1706235039555,-153.0,0.00030137,2]
[312792143,1706235039564,-153.0,0.00030137,2]
[312792144,1706235039573,-153.0,0.00030137,2]
[312792145,1706235039582,-153.0,0.00030137,2]
[312792146,1706235039591,-153.0,0.00030137,2]
[312792147,1706235039600,-156.8731427,0.00030137,2]
[312792148,1706235039609,-153.0,0.00030137,2]
[312792149,1706235039618,-153.0,0.00030137,2]
[312792150,1706235039628,-153.0,0.00030137,2]
[312792151,1706235039636,-153.0,0.00030137,2]
[312792152,1706235039645,-153.0,0.00030137,2]
[312792153,1706235039654,-325.1450383,0.00030137,2]
[312792154,1706235039663,-153.0,0.00030137,2]
[312792155,1706235039671,-153.0,0.00030137,2]
[312792156,1706235039680,-306.0,0.00030137,2]
[312792157,1706235039690,-153.0,0.00030137,2]
[312792158,1706235039698,-153.0,0.00030137,2]
[312792159,1706235039707,-153.0,0.00030137,2]
[312792160,1706235039716,-153.0,0.00030137,2]
[312792161,1706235039730,-306.0,0.00030137,2]
[312792162,1706235039739,-153.0,0.00030137,2]
[312792163,1706235039748,-153.0,0.00030137,2]
[312792164,1706235039756,-153.0,0.00030137,2]
[312792165,1706235039766,-153.0,0.00030137,2]
[312792166,1706235039775,-199.3339408,0.00030137,2]
[312792167,1706235039784,-153.0,0.00030137,2]
[312792168,1706235039793,-153.0,0.00030137,2]
[312792169,1706235039803,-153.0,0.00030137,2]
[312792170,1706235039812,-154.9397903,0.00030137,2]
[312792171,1706235039823,-306.0,0.00030137,2]
[312792172,1706235039833,-153.0,0.00030137,2]
[312792173,1706235039842,-199.3339408,0.00030137,2]
[312792174,1706235039851,-158.262522,0.00030137,2]
[312792175,1706235039860,-620.00073687,0.00030561,2]
[312792176,1706235039870,-158.262522,0.00031133,2]
[312792177,1706235039879,-292.6861549,0.00032,3]
[312792178,1706235039888,-154.86062544,0.00032,4]
[312792179,1706235039897,-9541.37630512,0.00032,10]
[312792180,1706235039906,-48200.92283003,0.00032,15]
[312792181,1706235039917,-3138.0982032,0.00032,2]
[312792182,1706235039926,-154.86062544,0.00032093,2]
[312792183,1706235039935,-158.262522,0.0003213,2]
[312792184,1706235039944,-280.0,0.00032265,15]
[312792185,1706235039953,-15593.4543553,0.00032877,2]
[312792186,1706235039962,-155.17044746,0.00033,4]
[312792187,1706235039973,-18391.21982941,0.00033,2]
[312792188,1706235039982,-170.0,0.00033,2]
[312792189,1706235039991,-158.262522,0.00033126,2]
[312792190,1706235040000,-168.87075786,0.0003397,2]
[312792191,1706235040009,-560.06207122,0.0003397,2]
[312792192,1706235040019,-251.15744204,0.0003398,4]
[312792193,1706235040028,-45200.45225479,0.00034,2]
[312792194,1706235040037,-151.0,0.00034,2]
[312792195,1706235040046,-151.0,0.00034,2]
[312792196,1706235040055,-326.591465,0.00034,2]
[312792197,1706235040064,-326.591465,0.00034,2]
[312792198,1706235040073,-151.0,0.00034,2]
[312792199,1706235040082,-151.0,0.00034,2]
[312792200,1706235040091,-151.0,0.00034,2]
[312792201,1706235040100,-936.524986,0.00034,2]
[312792202,1706235040109,-936.524986,0.00034,2]
[312792203,1706235040119,-151.0,0.00034,2]
[312792204,1706235040128,-4336.761877,0.00034,2]
[312792206,1706235040138,-4336.761877,0.00034,2]
[312792207,1706235040147,-151.0,0.00034,2]
[312792208,1706235040156,-158.262522,0.00034122,2]
[312792209,1706235040165,-359.87303206,0.00034345,2]
[312792210,1706235040174,-211.58595841,0.00034345,2]
[312792211,1706235040183,-192.43631101,0.00034345,2]
[312792213,1706235040192,-171.0,0.00034521,2]
[312792214,1706235040201,-159.64851322,0.00034898,120]
[312792216,1706235040211,-154.86062544,0.00035,2]
[312792218,1706235040223,-200.0,0.00035,2]
[312792220,1706235040232,-846.47235497,0.00035,2]
[312792222,1706235040241,-158.262522,0.00035118,2]
[312792224,1706235040250,-283.0,0.00035491,15]
[312792225,1706235040259,-162.85687087,0.00036,30]
[312792226,1706235040269,-158.262522,0.00036115,2]
[312792227,1706235040278,-158.262522,0.00037111,2]
[312792228,1706235040287,-217.42583206,0.0003724,2]
[312792229,1706235040297,-3021.14809287,0.00037643,2]
[312792230,1706235040306,-1976.90463242,0.00037643,2]
[312792231,1706235040315,-5000.0,0.00037681,7]
[312792232,1706235040325,-5000.0,0.00037686,7]
[312792233,1706235040334,-1192.43151414,0.00037686,2]
[312792234,1706235040343,-7438.12669179,0.00037739,2]
[312792235,1706235040353,-155.46592583,0.00037744,2]
[312792236,1706235040362,-1821.86366752,0.00037745,2]
[312792237,1706235040371,-2053.99061495,0.00037756,2]
[312792238,1706235040380,-454.70291986,0.00037756,4]
[312792239,1706235040389,-1473.75216574,0.00037756,2]
[312792240,1706235040398,-2284.52471738,0.00037779,4]
[312792241,1706235040407,-4922.49024919,0.00037781,4]
[312792242,1706235040416,-476.44274289,0.00037781,4]
[312792243,1706235040425,-207.12280759,0.00038,4]
[312792245,1706235040435,-158.262522,0.00038107,2]
[312792246,1706235040444,-165.0,0.0003817,2]
[312792247,1706235040453,-203.36,0.0003817,2]
[312792248,1706235040462,-2147.50028627,0.000385,4]
[312792249,1706235040472,-519.93118699,0.00038799,15]
[312792250,1706235040493,-500.0,0.00038799,15]
[312792251,1706235040503,-500.0,0.00038799,15]
[312792252,1706235040512,-174.79583967,0.00038799,15]
[312792253,1706235040522,-364.20404834,0.00038799,15]
[312792254,1706235040531,-500.0,0.00038799,15]
[312792255,1706235040541,-575.28516231,0.00038799,15]
[312792256,1706235040550,-500.0,0.00038799,15]
[312792257,1706235040559,-500.0,0.00038799,15]
[312792258,1706235040568,-500.0,0.00038799,15]
[312792259,1706235040578,-500.0,0.00038799,15]
[312792260,1706235040587,-500.0,0.00038799,15]
[312792261,1706235040597,-500.0,0.00038799,15]
[312792262,1706235040606,-478.49733588,0.00038799,15]
[312792263,1706235040616,-252.64220021,0.00038799,15]
[312792264,1706235040625,-152.412529,0.00038799,2]
[312792265,1706235040635,-4336.761877,0.00038799,2]
[312792266,1706235040644,-4336.761877,0.00038799,2]
[312792267,1706235040654,-151.0,0.00038799,2]
[312792268,1706235040663,-151.0,0.00038799,2]
[312792269,1706235040673,-151.0,0.00038799,2]
[312792270,1706235040683,-80650.17095718,0.000388,10]
[312792271,1706235040738,-1526.11327591,0.000388,10]
[312792373,1706236232276,-154.86062544,0.0002693,4]
[312792375,1706236232286,-342.49147074,0.00028999,2]
[312792380,1706236232343,-4140.12442368,0.00028999,2]
[312792383,1706236232355,-244.37626375,0.00028999,2]
[312792385,1706236232364,-1000.0,0.00029,2]
[312792387,1706236232374,-546.36982847,0.00029,2]
[312792389,1706236232386,-1386.6162937,0.00029,2]
[312792391,1706236232395,-159.07172645,0.000295,30]
[312792393,1706236232405,-2373.20128333,0.00031998,2]
[312792395,1706236232414,-688.95190791,0.00031999,4]
[312792397,1706236232424,-154.86062544,0.00032386,4]
[312792399,1706236232433,-166.6666671,0.00032387,2]
[312792401,1706236232443,-306.412039,0.00032682,2]
[312792403,1706236232452,-4093.920745,0.00032837,2]
[312792405,1706236232460,-154.86062544,0.0003298,2]
[312792407,1706236232470,-171.0,0.00033,2]
[312792409,1706236232482,-154.23129945,0.00034406,2]
[312792411,1706236232491,-157.96226766,0.00034917,4]
[312792413,1706236232500,-200.0,0.00035,2]
[312792415,1706236232510,-846.47235497,0.00035,2]
[312792417,1706236232518,-154.86062544,0.00035195,2]
[312792419,1706236232528,-250.0,0.00035197,15]
[312792420,1706236232537,-158.262522,0.0003599,2]
[312792421,1706236232546,-433.56938208,0.00036857,4]
[312792423,1706236232556,-2988.67492633,0.00037706,4]
[312792524,1706236244891,-856.35960284,0.00037696,3]
[312792554,1706236245385,-2286.07870614,0.00037696,3]
[312792573,1706236247464,-1755.72476602,0.00037696,3]
[312792614,1706237432509,-688.95190791,0.00031888,4]
[312792615,1706237432518,-293.66147978,0.00031888,2]
[312792650,1706237441686,-154.86062544,0.00031887,5]
[312792651,1706237441695,-2079.53980355,0.00031888,2]
[312792652,1706237441704,-244.39344907,0.00031889,4]
[312792654,1706237441714,-6351.04512614,0.00031889,3]
[312792656,1706237441723,-2597.10227546,0.0003189,4]
[312792658,1706237441732,-2640.6979768,0.00031966,2]
[312792660,1706237441742,-154.86062544,0.00032,4]
[312792662,1706237441751,-154.86062544,0.00032042,2]
[312792664,1706237441761,-3665.19088374,0.00032079,2]
[312792761,1706237663421,269.18250622,0.0001,2]
[312792762,1706237669479,2723.79097116,0.0001,2]
[312792763,1706237743003,154.86062544,9e-05,2]
[312792764,1706237758905,252.49489232,9e-05,2]
[312792777,1706238424751,303.6863981,0.000197,2]
[312792813,1706238440755,303.6863981,0.000197,2]
[312792815,1706238459261,303.6863981,0.000197,2]
[312792816,1706238469533,343.32585956,0.000197,2]
[312792817,1706238477264,303.6863981,0.000197,2]
[312792818,1706238479073,548.30356127,0.000197,2]
[312792819,1706238487522,343.32585956,0.000197,2]
[312792820,1706238495066,548.30356127,0.000197,2]
[312792821,1706238497262,303.6863981,0.000197,2]
[312792822,1706238509534,290.47030817,0.000197,2]
[312792823,1706238511070,179.04256121,0.000197,2]
[312792824,1706238515773,199.3100343,0.000197,2]
[312792825,1706238521330,154.86062544,0.00019699,3]
[312792827,1706238626852,154.86062544,0.00019699,2]
[312792887,1706238631737,-154.86062544,0.00026399,4]
[312792888,1706238631746,-626.3545168,0.000264,2]
[312792889,1706238631755,-5339.4366841,0.00026647,2]
[312792890,1706238631764,-2686.34271389,0.00026898,2]
[312792891,1706238631775,-1601.66359203,0.00026898,2]
[312792938,1706238637757,-12630.53511798,0.00026898,2]
[312792940,1706238637767,-10019.0294614,0.00027042,2]
[312792941,1706238637777,-2778.15240267,0.000275,2]
[312792942,1706238637786,-363.419718,0.00027542,2]
[312792943,1706238637796,-620.31772584,0.0002772,2]
[312792944,1706238637806,-16798.81242129,0.000289,2]
[312792945,1706238637815,-310.0,0.000289,2]
[312792946,1706238637825,-833.72665942,0.00029,2]
[312792947,1706238637834,-2039.37531472,0.00029,2]
[312792948,1706238637844,-1932.98612217,0.00029004,2]
[312792949,1706238637855,-560.06207122,0.00029005,2]
[312792950,1706238637865,-168.87075786,0.00029014,2]
[312792951,1706238637877,-620.01588629,0.00029106,2]
[312792952,1706238637887,-154.9397903,0.00029178,2]
[312792953,1706238637897,-153.0,0.00029315,2]
[312792954,1706238637906,-153.0,0.00029315,2]
[312792955,1706238637917,-325.743661,0.00029315,2]
[312792956,1706238637926,-309.4031383,0.00029315,2]
[312792957,1706238637935,-403.9797865,0.00029315,2]
[312792958,1706238637945,-310.0,0.00029456,2]
[312792959,1706238637955,-200.0,0.00029586,15]
[312792960,1706238637965,-155.013309,0.00029589,2]
[312792961,1706238637974,-2634.79432925,0.0002979,7]
[312792962,1706238637983,-165.68592547,0.000299,2]
[312792963,1706238637992,-1590.0158995,0.00029989,2]
[312792964,1706238638002,-20907.94,0.0002999,3]
[312792965,1706238638011,-1497.0200028,0.00029999,2]
[312792966,1706238638020,-154.86062544,0.0003,2]
[312792967,1706238638030,-167.01307802,0.0003,2]
[312792968,1706238638040,-2727.19962706,0.0003,2]
[312792969,1706238638050,-6204.72878083,0.0003,2]
[312792970,1706238638059,-2195.86737815,0.0003,2]
[312792971,1706238638068,-5007.41831529,0.0003,3]
[312792972,1706238638077,-18612.26225236,0.0003,2]
[312792973,1706238638087,-700.81191945,0.0003,2]
[312792974,1706238638096,-195.54104758,0.0003,2]
[312792975,1706238638105,-2373.20128333,0.0003,2]
[312792976,1706238638114,-688.95190791,0.0003,4]
[312792977,1706238638124,-154.86062544,0.0003,4]
[312792978,1706238638134,-154.86062544,0.0003,4]
[312792979,1706238638143,-244.39344907,0.0003,4]
[312792980,1706238638153,-139304.51624747,0.0003,4]
[312792981,1706238638162,-151.0,0.0003,2]
[312792982,1706238638171,-152.0,0.0003,2]
[312792983,1706238638180,-310.0,0.00030011,2]
[312792984,1706238638190,-199.397808,0.00030137,2]
[312792985,1706238638199,-199.397808,0.00030137,2]
[312792986,1706238638208,-199.397808,0.00030137,2]
[312792987,1706238638218,-199.397808,0.00030137,2]
[312792988,1706238638227,-199.397808,0.00030137,2]
[312792989,1706238638236,-392.8518118,0.00030137,2]
[312792990,1706238638246,-153.0,0.00030137,2]
[312792991,1706238638254,-153.0,0.00030137,2]
[312792992,1706238638264,-153.0,0.00030137,2]
[312792993,1706238638272,-153.0,0.00030137,2]
[312792994,1706238638281,-153.0,0.00030137,2]
[312792995,1706238638290,-199.397808,0.00030137,2]
[312792996,1706238638299,-153.0,0.00030137,2]
[312792997,1706238638308,-153.0,0.00030137,2]
[312792998,1706238638317,-153.0,0.00030137,2]
[312792999,1706238638326,-153.0,0.00030137,2]
[312793000,1706238638335,-153.0,0.00030137,2]
[312793001,1706238638344,-153.0,0.00030137,2]
[312793002,1706238638353,-153.0,0.00030137,2]
[312793003,1706238638362,-153.0,0.00030137,2]
[312793004,1706238638372,-153.0,0.00030137,2]
[312793005,1706238638381,-153.0,0.00030137,2]
[312793006,1706238638390,-153.0,0.00030137,2]
[312793007,1706238638399,-153.0,0.00030137,2]
[312793008,1706238638409,-153.0,0.00030137,2]
[312793009,1706238638420,-153.0,0.00030137,2]
[312793010,1706238638430,-153.0,0.00030137,2]
[312793011,1706238638439,-153.0,0.00030137,2]
[312793012,1706238638448,-153.0,0.00030137,2]
[312793013,1706238638457,-153.0,0.00030137,2]
[312793014,1706238638466,-153.0,0.00030137,2]
[312793015,1706238638475,-153.0,0.00030137,2]
[312793016,1706238638484,-367.43628,0.00030137,2]
[312793017,1706238638493,-166.275123,0.00030137,2]
[312793018,1706238638502,-158.249047,0.00030137,2]
[312793019,1706238638511,-620.00079431,0.00030561,2]
[312793020,1706238638523,-310.0,0.00030567,2]
[312793021,1706238638533,-173.7602042,0.00030864,2]
[312793022,1706238638542,-310.0,0.00031122,2]
[312793023,1706238638551,-158.249047,0.00031133,2]
[312793024,1706238638560,-166.275123,0.00031279,2]
[312793025,1706238638570,-153.0,0.00031478,2]
[312793026,1706238638579,-153.0,0.00031478,2]
[312793027,1706238638589,-153.0,0.00031478,2]
[312793028,1706238638597,-153.0,0.00031478,2]
[312793029,1706238638607,-310.0,0.00031678,2]
[312793030,1706238638616,-263.12024719,0.00031888,2]
[312793031,1706238638625,-3138.0982032,0.00032,2]
[312793032,1706238638633,-154.86062544,0.00032,4]
[312793033,1706238638642,-151.0,0.00032078,2]
[312793034,1706238638651,-151.0,0.00032078,2]
[312793035,1706238638660,-441.512243,0.00032078,2]
[312793036,1706238638670,-441.512243,0.00032078,2]
[312793037,1706238638679,-152.412529,0.00032078,2]
[312793038,1706238638688,-2455.22262293,0.00032079,2]
[312793039,1706238638697,-454.77590654,0.00032079,4]
[312793040,1706238638707,-376.04532851,0.00032079,4]
[312793041,1706238638716,-6130.33057246,0.00032079,4]
[312793042,1706238638725,-1027.33391297,0.00032079,2]
[312793043,1706238638734,-252.26028481,0.00032079,14]
[312793044,1706238638744,-151.0,0.00032079,2]
[312793045,1706238638753,-151.0,0.00032079,2]
[312793046,1706238638763,-441.512243,0.00032079,2]
[312793047,1706238638771,-441.512243,0.00032079,2]
[312793048,1706238638781,-300.0,0.00032079,4]
[312793049,1706238638791,-151.0,0.00032079,2]
[312793050,1706238638800,-151.0,0.00032079,2]
[312793051,1706238638811,-1131.148084,0.00032079,2]
[312793052,1706238638822,-1131.148084,0.00032079,2]
[312793053,1706238638832,-151.0,0.00032079,2]
[312793054,1706238638842,-10000.0,0.00032079,2]
[312793055,1706238638851,-10000.0,0.00032079,2]
[312793056,1706238638865,-10000.0,0.00032079,2]
[312793057,1706238638875,-151.0,0.00032079,2]
[312793058,1706238638885,-151.0,0.00032079,2]
[312793059,1706238638894,-151.0,0.00032079,2]
[312793060,1706238638905,-620.00003972,0.00032089,2]
[312793061,1706238638914,-153.0,0.000321,2]
[312793062,1706238638923,-153.0,0.000321,2]
[312793063,1706238638934,-158.249047,0.0003213,2]
[312793064,1706238638943,-310.0,0.00032233,2]
[312793065,1706238638953,-309.8154468,0.00032241,2]
[312793066,1706238638962,-199.397808,0.000323,2]
[312793067,1706238638972,-153.0,0.000323,2]
[312793068,1706238638982,-153.0,0.000323,2]
[312793069,1706238638991,-153.0,0.000323,2]
[312793070,1706238639001,-153.0,0.000323,2]
[312793071,1706238639012,-153.0,0.00032378,2]
[312793072,1706238639021,-199.397808,0.00032378,2]
[312793073,1706238639031,-153.0,0.00032378,2]
[312793074,1706238639040,-323.3168459,0.00032378,2]
[312793075,1706238639050,-176.8196987,0.00032378,2]
[312793076,1706238639059,-153.0,0.00032378,2]
[312793077,1706238639069,-153.0,0.00032378,2]
[312793078,1706238639078,-153.0,0.00032378,2]
[312793079,1706238639087,-199.397808,0.00032378,2]
[312793080,1706238639097,-153.0,0.00032378,2]
[312793081,1706238639106,-153.0,0.00032378,2]
[312793082,1706238639115,-199.397808,0.00032378,2]
[312793083,1706238639125,-153.0,0.00032378,2]
[312793084,1706238639134,-153.0,0.00032378,2]
[312793085,1706238639145,-153.0,0.00032378,2]
[312793086,1706238639154,-153.0,0.00032378,2]
[312793087,1706238639163,-199.397808,0.00032378,2]
[312793088,1706238639172,-153.0,0.00032378,2]
[312793089,1706238639182,-153.0,0.00032378,2]
[312793091,1706238639191,-153.0,0.00032378,2]
[312793093,1706238639201,-199.397808,0.00032378,2]
[312793095,1706238639210,-153.0,0.00032378,2]
[312793097,1706238639219,-199.397808,0.00032378,2]
[312793099,1706238639228,-192.3198301,0.00032378,2]
[312793101,1706238639238,-153.0,0.00032378,2]
[312793103,1706238639248,-199.397808,0.00032378,2]
[312793106,1706238639343,-199.397808,0.00032378,2]
[312793107,1706238639353,-153.0,0.00032378,2]
[312793108,1706238639362,-199.397808,0.00032378,2]
[312793109,1706238639371,-166.275123,0.0003242,2]
[312793110,1706238639380,-153.0,0.00032652,2]
[312793111,1706238639389,-153.0,0.00032652,2]
[312793112,1706238639398,-153.0,0.00032652,2]
[312793113,1706238639407,-153.0,0.00032652,2]
[312793114,1706238639416,-153.0,0.00032652,2]
[312793115,1706238639425,-310.0,0.00032789,2]
[312793116,1706238639434,-29820.0886424,0.00032877,2]
[312793117,1706238639443,-151.0,0.00032877,2]
[312793118,1706238639452,-249.262257,0.00032877,2]
[312793119,1706238639461,-441.512243,0.00032877,2]
[312793120,1706238639470,-441.512243,0.00032877,2]
[312793121,1706238639480,-151.0,0.00032877,2]
[312793122,1706238639489,-151.0,0.00032877,2]
[312793123,1706238639499,-1131.148084,0.00032877,2]
[312793124,1706238639508,-1131.148084,0.00032877,2]
[312793125,1706238639517,-151.0,0.00032877,2]
[312793126,1706238639527,-10000.0,0.00032877,2]
[312793127,1706238639537,-10000.0,0.00032877,2]
[312793128,1706238639545,-9922.972294,0.00032877,2]
[312793129,1706238639554,-151.0,0.00032877,2]
[312793130,1706238639563,-229.533175,0.00032877,2]
[312793131,1706238639572,-229.533175,0.00032877,2]
[312793132,1706238639581,-151.0,0.00032877,2]
[312793133,1706238639590,-173.953019,0.00032877,2]
[312793134,1706238639600,-151.0,0.00032877,2]
[312793135,1706238639609,-155.17044746,0.00033,4]
[312793136,1706238639618,-22952.05569164,0.00033,2]
[312793137,1706238639627,-151.0,0.00033,2]
[312793138,1706238639637,-441.512243,0.00033,2]
[312793139,1706238639647,-441.512243,0.00033,2]
[312793140,1706238639656,-155.0,0.00033,2]
[312793141,1706238639666,-151.0,0.00033,2]
[312793142,1706238639675,-151.0,0.00033,2]
[312793143,1706238639684,-1131.148084,0.00033,2]
[312793144,1706238639694,-1131.148084,0.00033,2]
[312793145,1706238639703,-151.0,0.00033,2]
[312793146,1706238639712,-10000.0,0.00033,2]
[312793147,1706238639721,-10000.0,0.00033,2]
[312793148,1706238639730,-287.482269,0.00033,2]
[312793149,1706238639739,-170.0,0.00033,2]
[312793150,1706238639749,-229.533175,0.00033,2]
[312793151,1706238639758,-229.533175,0.00033,2]
[312793152,1706238639768,-151.0,0.00033,2]
[312793154,1706238639777,-158.249047,0.00033126,2]
[312793155,1706238639787,-199.397808,0.000332,2]
[312793156,1706238639796,-199.397808,0.000332,2]
[312793157,1706238639805,-199.397808,0.000332,2]
[312793158,1706238639814,-199.397808,0.000332,2]
[312793159,1706238639823,-199.397808,0.000332,2]
[312793160,1706238639832,-199.397808,0.000332,2]
[312793162,1706238639841,-199.397808,0.000332,2]
[312793164,1706238639851,-199.397808,0.000332,2]
[312793165,1706238639863,-199.397808,0.000332,2]
[312793166,1706238639874,-172.432142,0.00033204,2]
[312793167,1706238639884,-310.0,0.00033344,2]
[312793169,1706238639893,-166.275123,0.00033562,2]
[312793171,1706238639903,-310.0,0.000339,2]
[312793173,1706238639912,-292.6861549,0.00034,3]
[312793174,1706238639921,-12770.92426487,0.00034,2]
[312793175,1706238639936,-4036.93073367,0.00034,2]
[312793176,1706238639949,-28392.59725625,0.00034,2]
[312793177,1706238639958,-151.0,0.00034,2]
[312793178,1706238639968,-441.512243,0.00034,2]
[312793179,1706238639977,-441.512243,0.00034,2]
[312793180,1706238639986,-151.0,0.00034,2]
[312793181,1706238639995,-203.881858,0.00034,2]
[312793182,1706238640005,-1131.148084,0.00034,2]
[312793183,1706238640014,-1131.148084,0.00034,2]
[312793184,1706238640023,-151.0,0.00034,2]
[312793185,1706238640032,-10000.0,0.00034,2]
[312793186,1706238640042,-10000.0,0.00034,2]
[312793187,1706238640051,-229.533175,0.00034,2]
[312793188,1706238640060,-229.533175,0.00034,2]
[312793189,1706238640069,-151.0,0.00034,2]
[312793190,1706238640078,-158.249047,0.00034122,2]
[312793191,1706238640087,-155.0,0.0003437,2]
[312793192,1706238640097,-3039.9641111,0.0003442,2]
[312793193,1706238640106,-230.15217298,0.0003443,4]
[312793194,1706238640114,-2056.80922712,0.0003443,4]
[312793195,1706238640123,-732.01584946,0.0003443,4]
[312793196,1706238640132,-328.32196971,0.0003443,4]
[312793197,1706238640141,-151.0,0.0003443,2]
[312793198,1706238640150,-441.512243,0.0003443,2]
[312793199,1706238640159,-441.512243,0.0003443,2]
[312793200,1706238640168,-151.0,0.0003443,2]
[312793201,1706238640178,-1131.148084,0.0003443,2]
[312793202,1706238640187,-1131.148084,0.0003443,2]
[312793203,1706238640196,-151.0,0.0003443,2]
[312793204,1706238640206,-10000.0,0.0003443,2]
[312793205,1706238640215,-10000.0,0.0003443,2]
[312793206,1706238640224,-229.533175,0.0003443,2]
[312793207,1706238640234,-229.533175,0.0003443,2]
[312793208,1706238640243,-170.868396,0.0003443,2]
[312793209,1706238640252,-821.92434177,0.00034431,4]
[312793210,1706238640261,-768.7079442,0.00034431,3]
[312793211,1706238640272,-1000.0,0.00034442,10]
[312793212,1706238640281,-620.65856638,0.00034498,2]
[312793213,1706238640290,-3963.62465958,0.00034529,2]
[312793214,1706238640300,-166.275123,0.00034703,2]
[312793215,1706238640309,-159.64851322,0.00034898,120]
[312793216,1706238640317,-846.47235497,0.00035,2]
[312793217,1706238640326,-158.249047,0.00035118,2]
[312793218,1706238640335,-155.0,0.0003574,2]
[312793219,1706238640344,-166.275123,0.00035845,2]
[312793220,1706238640353,-162.85687087,0.00036,30]
[312793221,1706238640362,-158.249047,0.00036115,2]
[312793222,1706238640371,-166.275123,0.00036986,2]
[312793223,1706238640380,-157.22004943,0.0003711,2]
[312793224,1706238640389,-158.249047,0.00037111,2]
[312793225,1706238640398,-217.42583206,0.0003724,2]
[312793226,1706238640407,-1821.86366752,0.00037685,2]
[312793227,1706238640417,-783.86842737,0.00037704,5]
[312793228,1706238640426,-4041.37785258,0.00037704,4]
[312793229,1706238640435,-155.67348865,0.00037704,4]
[312793230,1706238640444,-252.24191104,0.00037705,2]
[312793231,1706238640454,-500.0,0.00037809,15]
[312793232,1706238640463,-500.0,0.00037809,15]
[312793233,1706238640472,-500.0,0.00037809,15]
[312793234,1706238640482,-500.0,0.00037809,15]
[312793235,1706238640491,-500.0,0.00037809,15]
[312793236,1706238640501,-500.0,0.00037809,15]
[312793237,1706238640510,-311.28229777,0.00037809,15]
[312793238,1706238640520,-500.0,0.00037809,15]
[312793239,1706238640530,-500.0,0.00037809,15]
[312793240,1706238640539,-575.28516231,0.00037809,15]
[312793242,1706238640548,-510.65304384,0.00037809,15]
[312793244,1706238640558,-500.0,0.00037809,15]
[312793246,1706238640567,-500.0,0.00037809,15]
[312793248,1706238640575,-207.6132342,0.00037809,15]
[312793249,1706238640585,-500.0,0.00037809,15]
[312793251,1706238640594,-500.0,0.00037809,15]
[312793253,1706238640603,-552.52429414,0.00037809,15]
[312793254,1706238640612,-500.0,0.00037809,15]
[312793255,1706238640621,-500.0,0.00037809,15]
[312793256,1706238640631,-500.0,0.00037809,15]
[312793258,1706238640640,-650.40176183,0.00037809,15]
[312793260,1706238640649,-500.0,0.00037809,15]
[312793262,1706238640659,-500.0,0.00037809,15]
[312793263,1706238640668,-357.04182979,0.00037809,15]
[312793265,1706238640677,-500.0,0.00037809,15]
[312793267,1706238640686,-500.0,0.00037809,15]
[312793269,1706238640695,-500.0,0.00037809,15]
[312793270,1706238640704,-500.0,0.00037809,15]
[312793271,1706238640713,-500.0,0.00037809,15]
[312793272,1706238640722,-500.0,0.00037809,15]
[312793273,1706238640732,-500.0,0.00037809,15]
[312793274,1706238640741,-500.0,0.00037809,15]